fUSD/lending_fUSD_20240523
["ID","MTS","AMOUNT","RATE_DAILY","PERIOD"]
[327774368,1716472246299,-159.08274938,0.00023159,2]
[327774372,1716472246310,-166.66666666,0.00023161,2]
[327774376,1716472246320,-467.18932794,0.00023161,2]
[327774380,1716472246332,-166.66666666,0.00023213,2]
[327774383,1716472246344,-155.08702743,0.00023221,2]
[327774386,1716472246357,-5044.0,0.00023233,2]
[327774388,1716472246368,-151.0,0.00023233,7]
[327774390,1716472246380,-151.0,0.00023233,7]
[327774392,1716472246391,-151.0,0.00023233,7]
[327774394,1716472246402,-151.0,0.00023233,7]
[327774396,1716472246414,-151.0,0.00023233,7]
[327774398,1716472246424,-151.0,0.00023233,7]
[327774400,1716472246435,-151.0,0.00023233,7]
[327774403,1716472246446,-151.0,0.00023233,7]
[327774406,1716472246458,-152.175346,0.00023233,7]
[327774407,1716472246469,-245.859389,0.00023233,7]
[327774410,1716472246479,-151.0,0.00023233,7]
[327774413,1716472246490,-151.0,0.00023233,7]
[327774415,1716472246500,-151.0,0.00023233,7]
[327774418,1716472246511,-151.0,0.00023233,7]
[327774421,1716472246523,-151.0,0.00023233,7]
[327774424,1716472246536,-151.0,0.00023233,7]
[327774427,1716472246545,-151.0,0.00023233,7]
[327774430,1716472246556,-151.0,0.00023233,7]
[327774434,1716472246567,-151.0,0.00023233,7]
[327774437,1716472246579,-300.807564,0.00023233,7]
[327774440,1716472246589,-151.0,0.00023233,7]
[327774442,1716472246600,-156.126933,0.00023233,7]
[327774445,1716472246629,-151.0,0.00023233,7]
[327774448,1716472246641,-12587.81611909,0.00023233,2]
[327774451,1716472246651,-159.18081807,0.00023265,2]
[327774454,1716472246661,-159.17500527,0.00023268,2]
[327774456,1716472246671,-169.1813528,0.00023273,2]
[327774459,1716472246682,-150.87239783,0.00023277,2]
[327774461,1716472246693,-467.18932794,0.00023278,2]
[327774463,1716472246703,-169.00998555,0.00023299,2]
[327774465,1716472246714,-2392.6,0.00023368,2]
[327774468,1716472246725,-207.39020183,0.00023381,2]
[327774470,1716472246736,-1845.23049799,0.00023393,2]
[327774472,1716472246747,-168.15999965,0.00023398,2]
[327774474,1716472246757,-2005.18444528,0.000234,2]
[327774476,1716472246767,-851.00616603,0.00023445,2]
[327774478,1716472246777,-165.35447755,0.00023451,2]
[327774480,1716472246787,-166.66666667,0.00023464,2]
[327774482,1716472246797,-467.18932794,0.00023475,2]
[327774484,1716472246807,-1845.23049799,0.00023478,2]
[327774486,1716472246817,-165.58901276,0.00023488,2]
[327774488,1716472246828,-427.35743503,0.00023494,2]
[327774490,1716472246839,-150.0,0.000235,3]
[327774492,1716472246849,-159.17500527,0.00023513,2]
[327774494,1716472246860,-166.66666667,0.0002352,2]
[327774496,1716472246871,-622.14,0.00023524,2]
[327774498,1716472246880,-276.33992346,0.00023565,2]
[327774499,1716472246891,-12587.81611909,0.00023567,2]
[327774501,1716472246901,-151.0,0.00023567,7]
[327774504,1716472246911,-151.0,0.00023567,7]
[327774505,1716472246922,-151.0,0.00023567,7]
[327774506,1716472246934,-151.0,0.00023567,7]
[327774507,1716472246944,-754.2252665,0.00023576,2]
[327774508,1716472246955,-207.39020183,0.00023593,2]
[327774509,1716472246966,-165.35447755,0.00023603,2]
[327774510,1716472246977,-276.33992346,0.0002367,2]
[327774511,1716472246988,-158.83000691,0.00023697,2]
[327774512,1716472247006,-25000.0,0.000237,2]
[327774513,1716472247016,-166.66666666,0.00023737,2]
[327774514,1716472247027,-152.96549234,0.00023747,2]
[327774515,1716472247039,-165.35447755,0.00023762,2]
[327774516,1716472247054,-276.33992346,0.00023765,2]
[327774517,1716472247065,-155.08702743,0.00023775,2]
[327774518,1716472247077,-467.18932794,0.00023806,2]
[327774519,1716472247088,-851.00616603,0.00023808,2]
[327774520,1716472247099,-2282.35116558,0.00023835,2]
[327774521,1716472247113,-153.243874,0.00023836,2]
[327774522,1716472247133,-254.91232981,0.00023866,2]
[327774523,1716472247144,-161.619254,0.00023897,2]
[327774524,1716472247155,-188.9064478,0.00023897,2]
[327774525,1716472247166,-188.90644778,0.00023899,2]
[327774526,1716472247176,-467.18932794,0.00023899,2]
[327774527,1716472247186,-2153.55187068,0.000239,2]
[327774528,1716472247198,-500.0,0.000239,2]
[327774529,1716472247209,-11907.73639651,0.000239,2]
[327774530,1716472247220,-6152.11199124,0.000239,2]
[327774531,1716472247231,-1088.84281099,0.000239,2]
[327774532,1716472247242,-165.58901276,0.000239,2]
[327774533,1716472247253,-3205.99574278,0.000239,7]
[327774534,1716472247264,-12587.81611909,0.000239,2]
[327774535,1716472247275,-151.0,0.000239,7]
[327774536,1716472247287,-151.0,0.000239,7]
[327774537,1716472247298,-151.0,0.000239,7]
[327774538,1716472247309,-427.35743503,0.000239,2]
[327774539,1716472247320,-151.0,0.000239,7]
[327774540,1716472247330,-151.0,0.000239,7]
[327774541,1716472247340,-151.0,0.000239,7]
[327774542,1716472247351,-188.90644778,0.000239,2]
[327774543,1716472247361,-166.66666666,0.00023938,2]
[327774544,1716472247371,-1845.23049799,0.00023958,2]
[327774545,1716472247382,-150.86,0.00023987,2]
[327774546,1716472247392,-151.0,0.00023996,2]
[327774547,1716472247403,-150.0,0.00023996,2]
[327774548,1716472247413,-150.0,0.00023996,2]
[327774549,1716472247424,-150.0,0.00023996,2]
[327774550,1716472247435,-150.0,0.00023996,2]
[327774551,1716472247445,-355180.0204064,0.00023997,13]
[327774552,1716472247461,-1218.79751091,0.00023997,13]
[327774555,1716472247820,-150.01,0.00020998,2]
[327774557,1716472247832,-1449.36077202,0.00020998,2]
[327774559,1716472247845,-4422.35023064,0.00020998,2]
[327774560,1716472247857,-29681.59744606,0.00023997,13]
[327774562,1716472247870,-637.12809936,0.00023997,13]
[327774563,1716472247884,-68304.59999999,0.00023997,13]
[327774564,1716472247899,-20351.24196225,0.00023997,13]
[327774565,1716472247910,-235.1368807,0.00023997,2]
[327774566,1716472247922,-115389.46115704,0.00023997,2]
[327774567,1716472247936,-312.56072554,0.00023997,2]
[327774568,1716472247951,-273.60324201,0.00023997,2]
[327774569,1716472247965,-136254.88731914,0.00023997,2]
[327774570,1716472247980,-2853.68630689,0.00023997,2]
[327774571,1716472247997,-4379.10036112,0.00023997,2]
[327774572,1716472248013,-56517.72111581,0.00023997,2]
[327774573,1716472248027,-8868.52237576,0.00023997,2]
[327774575,1716472248095,-72.11655521,0.00023997,2]
[327774576,1716472248109,-2019.09641275,0.00023997,2]
[327774577,1716472248140,-6053.57304859,0.00023997,2]
[327774578,1716472248232,-2100.0,0.0002139,2]
[327774579,1716472248246,-2761164.68389127,0.00023997,2]
[327774580,1716472248257,-4028.8431737,0.00023997,2]
[327774581,1716472248270,-232143.19369485,0.00023997,2]
[327774582,1716472248286,-221212.17715015,0.00023997,2]
[327774583,1716472248300,-450553.16874646,0.00023997,2]
[327774584,1716472248361,-0.00751047,0.00023997,2]
[327774585,1716472248375,-393659.73509293,0.00023997,2]
[327774586,1716472248387,-2316.73639925,0.00023997,2]
[327774587,1716472248398,-9020.39931837,0.00023997,2]
[327774588,1716472248409,-151.0,0.00023997,7]
[327774589,1716472248421,-151.0,0.00023997,7]
[327774590,1716472248431,-153.618675,0.00023997,7]
[327774591,1716472248443,-151.0,0.00023997,7]
[327774592,1716472248454,-151.0,0.00023997,7]
[327774593,1716472248465,-157.497477,0.00023997,7]
[327774594,1716472248476,-151.0,0.00023997,7]
[327774595,1716472248487,-151.0,0.00023997,7]
[327774596,1716472248498,-151.0,0.00023997,7]
[327774597,1716472248510,-154.075553,0.00023997,7]
[327774598,1716472248521,-151.0,0.00023997,7]
[327774599,1716472248532,-151.0,0.00023997,7]
[327774600,1716472248542,-151.0,0.00023997,7]
[327774601,1716472248554,-153.338647,0.00023997,7]
[327774602,1716472248564,-151.0,0.00023997,7]
[327774603,1716472248576,-165.273671,0.00023997,7]
[327774604,1716472248588,-151.0,0.00023997,7]
[327774605,1716472248600,-153.444542,0.00023997,7]
[327774606,1716472248611,-151.0,0.00023997,7]
[327774607,1716472248622,-151.0,0.00023997,7]
[327774608,1716472248635,-151.0,0.00023997,7]
[327774609,1716472248660,-151.0,0.00023997,7]
[327774610,1716472248670,-151.0,0.00023997,7]
[327774611,1716472248681,-151.0,0.00023997,7]
[327774612,1716472248691,-151.0,0.00023997,7]
[327774613,1716472248702,-204.132414,0.00023997,7]
[327774614,1716472248714,-151.0,0.00023997,7]
[327774615,1716472248724,-250.564459,0.00023997,7]
[327774616,1716472248735,-158.387327,0.00023997,7]
[327774617,1716472248748,-151.0,0.00023997,7]
[327774618,1716472248760,-151.0,0.00023997,7]
[327774619,1716472248771,-151.0,0.00023997,7]
[327774620,1716472248781,-151.0,0.00023997,7]
[327774621,1716472248792,-215.79162,0.00023997,7]
[327774622,1716472248803,-151.0,0.00023997,7]
[327774623,1716472248815,-151.0,0.00023997,7]
[327774624,1716472248826,-151.0,0.00023997,7]
[327774625,1716472248837,-151.0,0.00023997,7]
[327774626,1716472248847,-151.0,0.00023997,7]
[327774627,1716472248858,-218.285716,0.00023997,7]
[327774628,1716472248868,-151.0,0.00023997,7]
[327774629,1716472248880,-177.163017,0.00023997,7]
[327774630,1716472248891,-151.0,0.00023997,7]
[327774631,1716472248902,-151.0,0.00023997,7]
[327774632,1716472248912,-151.0,0.00023997,7]
[327774633,1716472248923,-153.510778,0.00023997,7]
[327774634,1716472248933,-151.0,0.00023997,7]
[327774635,1716472248944,-151.0,0.00023997,7]
[327774636,1716472248955,-151.0,0.00023997,7]
[327774637,1716472248966,-154.186381,0.00023997,7]
[327774638,1716472248977,-151.0,0.00023997,7]
[327774639,1716472248988,-151.0,0.00023997,7]
[327774640,1716472249006,-157.2655,0.00023997,7]
[327774641,1716472249018,-242.670418,0.00023997,7]
[327774642,1716472249030,-151.0,0.00023997,7]
[327774643,1716472249041,-151.0,0.00023997,7]
[327774644,1716472249055,-151.0,0.00023997,7]
[327774645,1716472249067,-151.0,0.00023997,7]
[327774646,1716472249077,-160.961788,0.00023997,7]
[327774647,1716472249088,-150.0,0.00023997,2]
[327774648,1716472249099,-151.0,0.00023997,7]
[327774649,1716472249110,-151.0,0.00023997,7]
[327774650,1716472249121,-155.003207,0.00023997,7]
[327774651,1716472249136,-151.0,0.00023997,7]
[327774652,1716472249158,-151.0,0.00023997,7]
[327774653,1716472249171,-151.0,0.00023997,7]
[327774654,1716472249182,-151.0,0.00023997,7]
[327774655,1716472249194,-151.0,0.00023997,7]
[327774656,1716472249208,-151.0,0.00023997,7]
[327774657,1716472249220,-155.64307,0.00023997,7]
[327774658,1716472249230,-139220.43355042,0.00023998,2]
[327774659,1716472249244,-1365.5162,0.00023998,2]
[327774660,1716472249256,-12603.23714043,0.00023998,2]
[327774661,1716472249273,-18909.23913965,0.00023998,2]
[327774662,1716472249285,-68150.07193081,0.00023998,2]
[327774663,1716472249299,-15744.20232356,0.00023998,2]
[327774664,1716472249312,-27248.52339183,0.00023998,2]
[327774665,1716472249325,-1377.81012,0.00023998,2]
[327774666,1716472249338,-647.268,0.00023998,2]
[327774667,1716472249351,-207420.50620401,0.00023998,2]
[327774668,1716472249364,-10547.03561718,0.00023998,2]
[327774669,1716472249378,-7243.05699572,0.00023998,2]
[327774670,1716472249392,-1452.44959477,0.00023998,2]
[327774671,1716472249544,698.46,0.0002,2]
[327774672,1716472249935,-342.93900444,0.00020939,2]
[327774673,1716472249949,-570.77125,0.00020939,2]
[327774674,1716472249963,-849.99999997,0.00020939,2]
[327774675,1716472249975,-1457.4362844,0.00020939,2]
[327774676,1716472249986,-173.91468435,0.00021158,2]
[327774677,1716472250001,-628.07966112,0.00021158,2]
[327774678,1716472250013,-4295.50992168,0.00023897,2]
[327774679,1716472250023,-197764.33621539,0.00023998,2]
[327774680,1716472250034,-151.0,0.00023998,7]
[327774681,1716472250050,-151.0,0.00023998,7]
[327774682,1716472250061,-217.647964,0.00023998,7]
[327774683,1716472250071,-151.0,0.00023998,7]
[327774684,1716472250082,-229.623799,0.00023998,7]
[327774685,1716472250092,-151.0,0.00023998,7]
[327774686,1716472250102,-151.0,0.00023998,7]
[327774687,1716472250112,-151.0,0.00023998,7]
[327774688,1716472250122,-151.0,0.00023998,7]
[327774689,1716472250141,-151.0,0.00023998,7]
[327774690,1716472250157,-464.0,0.00023999,2]
[327774691,1716472250167,-464.0,0.00023999,2]
[327774692,1716472250177,-464.0,0.00023999,2]
[327774693,1716472250188,-464.0,0.00023999,2]
[327774694,1716472250200,-464.0,0.00023999,2]
[327774695,1716472250210,-464.0,0.00023999,2]
[327774696,1716472250220,-464.0,0.00023999,2]
[327774697,1716472250231,-464.0,0.00023999,2]
[327774698,1716472250241,-464.0,0.00023999,2]
[327774699,1716472250251,-464.0,0.00023999,2]
[327774700,1716472250261,-464.0,0.00023999,2]
[327774701,1716472250272,-464.0,0.00023999,2]
[327774702,1716472250283,-464.0,0.00023999,2]
[327774703,1716472250294,-464.0,0.00023999,2]
[327774704,1716472250306,-464.0,0.00023999,2]
[327774705,1716472250316,-224.0,0.00023999,2]
[327774706,1716472250327,-224.0,0.00023999,2]
[327774707,1716472250336,-224.0,0.00023999,2]
[327774708,1716472250346,-224.0,0.00023999,2]
[327774709,1716472250356,-224.0,0.00023999,2]
[327774710,1716472250415,-224.0,0.00023999,2]
[327774711,1716472250424,-224.0,0.00023999,2]
[327774712,1716472250434,-224.0,0.00023999,2]
[327774713,1716472250444,-224.0,0.00023999,2]
[327774714,1716472250453,-224.0,0.00023999,2]
[327774715,1716472250463,-224.0,0.00023999,2]
[327774716,1716472250473,-224.0,0.00023999,2]
[327774717,1716472250483,-224.0,0.00023999,2]
[327774718,1716472250493,-224.0,0.00023999,2]
[327774719,1716472250502,-224.0,0.00023999,2]
[327774720,1716472250512,-221.0,0.00023999,2]
[327774721,1716472250522,-221.0,0.00023999,2]
[327774722,1716472250531,-221.0,0.00023999,2]
[327774723,1716472250541,-221.0,0.00023999,2]
[327774724,1716472250550,-212.0,0.00023999,2]
[327774725,1716472250560,-217.0,0.00023999,2]
[327774726,1716472250570,-232.0,0.00023999,2]
[327774727,1716472250579,-150.0,0.00023999,2]
[327774728,1716472250588,-150.0,0.00023999,2]
[327774729,1716472250598,-150.0,0.00023999,2]
[327774730,1716472250608,-150.0,0.00023999,2]
[327774731,1716472250618,-150.0,0.00023999,2]
[327774732,1716472250628,-150.0,0.00023999,2]
[327774733,1716472250649,-150.0,0.00023999,2]
[327774734,1716472250658,-150.0,0.00023999,2]
[327774735,1716472250667,-150.0,0.00023999,2]
[327774736,1716472250677,-4259.03226721,0.00024,5]
[327774737,1716472250689,-544194.53378142,0.00024,5]
[327774738,1716472250755,-3440.50277744,0.00024,5]
[327774739,1716472250767,-272858.99999995,0.00024,5]
[327774740,1716472250779,-376.22196513,0.00024,5]
[327774741,1716472250790,-771.62734936,0.00024,5]
[327774742,1716472250827,-6878.214984,0.00024,5]
[327774743,1716472250868,-10263.45,0.00024,5]
[327774744,1716472250881,-895.4937,0.00024,5]
[327774745,1716472250893,-7409.5,0.00024,5]
[327774746,1716472250904,-3434.326,0.00024,5]
[327774747,1716472250916,-2050.27652,0.00024,5]
[327774748,1716472250928,-28029.98544256,0.00024,5]
[327774749,1716472250940,-47517.50167351,0.00024,5]
[327774750,1716472250954,-19243.33034475,0.00024,5]
[327774751,1716472250967,-493.17867063,0.00024,5]
[327774752,1716472250979,-502.07964278,0.00024,5]
[327774753,1716472255997,352.16117741,0.0002,2]
[327774755,1716472262451,1366.29596794,0.0002,2]
[327774756,1716472263815,150.0,0.00019725,2]
[327774757,1716472264163,150.0,0.00019725,2]
[327774767,1716472303473,326.95181777,0.00017259,2]
[327774768,1716472304524,43327.92188896,0.00019725,2]
[327774769,1716472306614,6831.9551668,0.00017259,2]
[327774770,1716472306782,541.26136792,0.00017259,2]
[327774773,1716472329601,155.0,0.00017259,2]
[327774776,1716472360153,300.0,0.0001992,2]
[327774777,1716472364429,3881.95677998,0.00019451,2]
[327774778,1716472379629,326.95181777,0.00019725,2]
[327774779,1716472381421,862.47163439,0.0002,2]
[327774780,1716472383694,3647.0,0.00019451,2]
[327774781,1716472385980,782.6446222,0.00017259,2]
[327774782,1716472390729,747.75147422,0.00017259,2]
[327774783,1716472391707,709.09,0.00018787,2]
[327774784,1716472400346,1000.0,0.00030575,120]
[327774785,1716472412104,155.0,0.00019725,2]
[327774786,1716472438926,3881.95677998,0.00019725,2]
[327774787,1716472458164,3647.0,0.00019725,2]
[327774788,1716472472406,159.45,0.00027068,30]
[327774789,1716472488609,155.0,0.00019725,2]
[327774791,1716472509610,3881.95677998,0.00019725,2]
[327774792,1716472510872,1465.0,0.00019699,2]
[327774793,1716472514656,37885.0,0.00019699,2]
[327774794,1716472520748,1061.0,0.00019699,2]
[327774795,1716472530668,3647.0,0.00019725,2]
[327774796,1716472542858,660.9,0.00019699,2]
[327774797,1716472618456,150.0,0.00019949,2]
[327774798,1716472668714,162.92,0.00019868,2]
[327774799,1716472669110,162.92,0.00024835,120]
[327774800,1716472669461,162.92,0.00029802,120]
[327774801,1716472708284,1009.78,0.00019961,2]
[327774802,1716472730512,89174.52920807,0.00031,120]
[327774803,1716472807768,2211.252,0.00019699,2]
[327774804,1716472808747,984.946,0.00019699,2]
[327774805,1716472809560,990.377,0.00019699,2]
[327774806,1716472810102,1401.0,0.00019699,2]
[327774807,1716472826716,289.0,0.00019699,2]
[327774808,1716472827660,350.0,0.0003,30]
[327774809,1716472830097,613.0,0.00019869,2]
[327774810,1716472832558,1263.0,0.00019869,2]
[327774811,1716472833293,1643.0,0.00019869,2]
[327774812,1716472834288,1225.0,0.00019869,2]
[327774813,1716472843823,2395.0,0.00019886,2]
[327774814,1716472844166,445.0,0.00019886,2]
[327774815,1716472845980,201.0,0.00019886,2]
[327774816,1716472854699,1137.0,0.00019886,2]
[327774817,1716472856062,215.0,0.00019886,2]
[327774818,1716472862634,1649.0,0.00019888,2]
[327774819,1716472876267,3157.0,0.00019888,2]
[327774820,1716472883394,673.63,0.00017773,2]
[327774821,1716472895927,250.0,0.00019667,2]
[327774822,1716472918032,646341.01586646,0.0003,30]
[327774823,1716472952528,200.0,0.00019669,2]
[327774824,1716472955499,3865.99,0.00019664,2]
[327774825,1716472959999,169.66,0.00019841,2]
[327774826,1716472965974,500.0,0.00019675,2]
[327774828,1716473059500,7309.08,0.00019678,2]
[327774829,1716473083427,1000.0,0.00019671,2]
[327774830,1716473101382,1165.95,0.00019659,2]
[327774831,1716473165431,1000.0,0.00019658,2]
[327774832,1716473171582,1032.27,0.00019665,2]
[327774833,1716473209960,234.41,0.0001964,2]
[327774834,1716473340915,234.81,0.00013973,2]
[327774836,1716473379803,639.94,0.00017764,2]
[327774837,1716473384555,329.08,0.00019821,2]
[327774838,1716473407940,163.61730037,0.00019918,2]
[327774839,1716473421153,250.0,0.0001967,2]
[327774840,1716473425379,883.94040145,0.00017259,2]
[327774851,1716473433235,-275.5988116,0.00020017,2]
[327774854,1716473433248,-2091.09398676,0.00020017,2]
[327774857,1716473433260,-372.40005352,0.00020017,2]
[327774863,1716473433307,-269.09758648,0.00020017,2]
[327774865,1716473433319,-20213.66433014,0.00020017,2]
[327774866,1716473433329,-1000.0,0.00020017,2]
[327774867,1716473433339,-1000.0,0.00020018,2]
[327774868,1716473433348,-1000.0,0.00020019,2]
[327774869,1716473433358,-639.94,0.00020027,2]
[327774870,1716473433368,-1000.0,0.00020028,2]
[327774871,1716473433378,-299.99,0.00020037,7]
[327774872,1716473433392,-442.97,0.00020037,2]
[327774873,1716473433402,-1000.0,0.00020135,2]
[327774874,1716473433415,-499.99,0.00020135,2]
[327774875,1716473433425,-169.66,0.00020186,2]
[327774876,1716473433435,-234.81,0.00020447,2]
[327774877,1716473433444,-150.0,0.000205,2]
[327774878,1716473433454,-169.66,0.00020531,2]
[327774879,1716473433466,-1000.0,0.00020633,2]
[327774880,1716473433476,-1430.36712649,0.00020647,2]
[327774881,1716473433486,-300.0,0.00020685,2]
[327774882,1716473433495,-169.66,0.00020875,2]
[327774883,1716473433506,-969.60211798,0.00020889,2]
[327774884,1716473433515,-628.07966112,0.00020897,2]
[327774885,1716473433524,-186.99771518,0.00020897,2]
[327774886,1716473433534,-782.6446222,0.00020897,2]
[327774887,1716473433543,-168.4198543,0.00020897,2]
[327774888,1716473433552,-1106.00000001,0.00020897,2]
[327774889,1716473433561,-2918.87813659,0.00020897,2]
[327774890,1716473433571,-6472.45679099,0.00020898,2]
[327774891,1716473433580,-267.19361048,0.00020898,2]
[327774893,1716473433589,-2330.58703708,0.00020898,2]
[327774895,1716473433598,-65845.1154,0.00020899,2]
[327774897,1716473433608,-326.03857362,0.00020938,2]
[327774899,1716473433617,-3795.7281,0.00020959,2]
[327774901,1716473433626,-1000.0,0.00020959,2]
[327774903,1716473433635,-636.3403,0.00020959,2]
[327774905,1716473433644,-3599.705,0.00020969,2]
[327774906,1716473433655,-1000.0,0.00020972,2]
[327774908,1716473433665,-3744.274,0.00020973,2]
[327774910,1716473433675,-718.07397259,0.00021,2]
[327774912,1716473433685,-2934.99660606,0.00021,2]
[327774915,1716473433695,-5512.46730855,0.00021,2]
[327774917,1716473433704,-150.0,0.00021,2]
[327774919,1716473433714,-192750.7253,0.00021059,2]
[327774921,1716473433724,-2529.9087,0.00021059,2]
[327774923,1716473433733,-2100.0,0.00021217,2]
[327774925,1716473433742,-150.0,0.000215,3]
[327774927,1716473433752,-200.0,0.0002158,2]
[327774929,1716473433762,-19627.57076991,0.000216,2]
[327774930,1716473433771,-182.47226424,0.000218,2]
[327774932,1716473433781,-1000.0,0.00021824,2]
[327774934,1716473433791,-500.0,0.00021824,2]
[327774936,1716473433800,-6772.86623355,0.000219,2]
[327774938,1716473433809,-475.05497328,0.000219,2]
[327774940,1716473433819,-500.0,0.000219,2]
[327774942,1716473433829,-500.0,0.000219,2]
[327774944,1716473433838,-500.0,0.000219,2]
[327774946,1716473433847,-500.0,0.000219,2]
[327774948,1716473433857,-500.0,0.000219,2]
[327774950,1716473433866,-500.0,0.000219,2]
[327774952,1716473433875,-500.0,0.000219,2]
[327774954,1716473433884,-500.0,0.000219,2]
[327774956,1716473433893,-500.0,0.000219,2]
[327774958,1716473433905,-500.0,0.000219,2]
[327774960,1716473433915,-500.0,0.000219,2]
[327774962,1716473433924,-500.0,0.000219,2]
[327774963,1716473433932,-500.0,0.000219,2]
[327774965,1716473433940,-500.0,0.000219,2]
[327774967,1716473433949,-500.0,0.000219,2]
[327774969,1716473433958,-500.0,0.000219,2]
[327774972,1716473433968,-500.0,0.000219,2]
[327774974,1716473433977,-500.0,0.000219,2]
[327774976,1716473433987,-500.0,0.000219,2]
[327774977,1716473433996,-500.0,0.000219,2]
[327774979,1716473434005,-500.0,0.000219,2]
[327774981,1716473434015,-500.0,0.000219,2]
[327774983,1716473434024,-500.0,0.000219,2]
[327774985,1716473434034,-500.0,0.000219,2]
[327774987,1716473434043,-500.0,0.000219,2]
[327774989,1716473434052,-500.0,0.000219,2]
[327774991,1716473434062,-500.0,0.000219,2]
[327774993,1716473434072,-500.0,0.000219,2]
[327774995,1716473434081,-500.0,0.000219,2]
[327774997,1716473434090,-500.0,0.000219,2]
[327774999,1716473434099,-500.0,0.000219,2]
[327775001,1716473434108,-500.0,0.000219,2]
[327775003,1716473434117,-500.0,0.000219,2]
[327775005,1716473434127,-500.0,0.000219,2]
[327775007,1716473434136,-500.0,0.000219,2]
[327775009,1716473434145,-500.0,0.000219,2]
[327775011,1716473434157,-500.0,0.000219,2]
[327775013,1716473434166,-500.0,0.000219,2]
[327775015,1716473434175,-500.0,0.000219,2]
[327775017,1716473434185,-500.0,0.000219,2]
[327775019,1716473434195,-500.0,0.000219,2]
[327775021,1716473434204,-500.0,0.000219,2]
[327775023,1716473434213,-500.0,0.000219,2]
[327775025,1716473434223,-500.0,0.000219,2]
[327775027,1716473434232,-500.0,0.000219,2]
[327775029,1716473434241,-500.0,0.000219,2]
[327775031,1716473434251,-500.0,0.000219,2]
[327775033,1716473434260,-500.0,0.000219,2]
[327775035,1716473434270,-500.0,0.000219,2]
[327775037,1716473434279,-500.0,0.000219,2]
[327775039,1716473434288,-500.0,0.000219,2]
[327775041,1716473434297,-500.0,0.000219,2]
[327775043,1716473434306,-500.0,0.000219,2]
[327775045,1716473434316,-500.0,0.000219,2]
[327775047,1716473434326,-500.0,0.000219,2]
[327775049,1716473434335,-500.0,0.000219,2]
[327775051,1716473434345,-500.0,0.000219,2]
[327775053,1716473434355,-500.0,0.000219,2]
[327775055,1716473434364,-500.0,0.000219,2]
[327775057,1716473434380,-500.0,0.000219,2]
[327775059,1716473434389,-500.0,0.000219,2]
[327775061,1716473434398,-500.0,0.000219,2]
[327775064,1716473434413,-500.0,0.000219,2]
[327775065,1716473434423,-500.0,0.000219,2]
[327775067,1716473434433,-500.0,0.000219,2]
[327775069,1716473434443,-500.0,0.000219,2]
[327775071,1716473434452,-500.0,0.000219,2]
[327775073,1716473434464,-500.0,0.000219,2]
[327775075,1716473434472,-500.0,0.000219,2]
[327775077,1716473434481,-500.0,0.000219,2]
[327775079,1716473434491,-500.0,0.000219,2]
[327775081,1716473434500,-500.0,0.000219,2]
[327775083,1716473434509,-1000.0,0.000219,2]
[327775084,1716473434519,-778.1,0.00021918,2]
[327775085,1716473434530,-995.0,0.00021918,2]
[327775086,1716473434539,-194.04,0.00021918,2]